bitfinex/quotes_BTCUSD_20250711
["timestamp","ask_amount","ask_price","bid_price","bid_amount"]
[1752196815018,0.27150923,115790.0,115780.0,0.50301761]
[1752196815217,0.26953923,115790.0,115780.0,0.51911761]
[1752196815457,0.26953923,115790.0,115780.0,0.52111761]
[1752196816197,0.29544513,115800.0,115780.0,0.52111761]
[1752196816404,0.26953923,115790.0,115780.0,0.52111761]
[1752196817761,0.27817488,115790.0,115780.0,0.51911761]
[1752196817904,0.26953923,115790.0,115780.0,0.51911761]
[1752196818114,0.27817495,115790.0,115780.0,0.51911761]
[1752196818311,0.27817495,115790.0,115780.0,0.52111761]
[1752196818540,0.27817488,115790.0,115780.0,0.52111761]
[1752196818772,0.27817488,115790.0,115780.0,0.51911761]
[1752196818954,0.26953923,115790.0,115780.0,0.51911761]
[1752196819137,0.26953923,115790.0,115780.0,0.53501761]
[1752196819362,0.26953923,115790.0,115780.0,0.53701761]
[1752196819546,0.25917767,115790.0,115780.0,0.53701761]
[1752196820702,0.25917767,115790.0,115780.0,0.52111761]
[1752196820986,0.26781332,115790.0,115780.0,0.52111761]
[1752196821355,0.27644904,115790.0,115780.0,0.52111761]
[1752196821556,0.27842904,115790.0,115780.0,0.52111761]
[1752196821748,0.26115767,115790.0,115780.0,0.52111761]
[1752196822483,0.25079783,115790.0,115780.0,0.52111761]
[1752196822719,0.24881783,115790.0,115780.0,0.52111761]
[1752196822963,0.24881783,115790.0,115780.0,0.58274139]
[1752196823212,0.24881783,115790.0,115780.0,0.59884139]
[1752196824312,0.41912948,115800.0,115780.0,0.59884139]
[1752196824514,0.26953923,115790.0,115780.0,0.59884139]
[1752196825133,0.26953923,115790.0,115780.0,0.59684139]
[1752196825508,0.26953923,115790.0,115780.0,0.59884139]
[1752196826032,0.26953923,115790.0,115780.0,0.59684139]
[1752196827403,0.26953923,115790.0,115780.0,0.59884139]
[1752196827851,0.26953923,115790.0,115780.0,0.46652139]
[1752196828090,0.43640011,115800.0,115780.0,0.58270139]
[1752196828311,0.26953923,115790.0,115780.0,0.58270139]
[1752196828725,0.26395923,115790.0,115780.0,0.58270139]
[1752196829153,0.26395923,115790.0,115780.0,0.58070139]
[1752196829577,0.17305505,115800.0,115780.0,0.58070139]
[1752196829792,0.17305505,115800.0,115780.0,0.59580139]
[1752196829793,0.13232,115800.0,115780.0,0.59580139]
[1752196830014,0.0086349,115800.0,115790.0,0.0151]
[1752196830269,0.15818508,115800.0,115790.0,0.03316246]
[1752196830482,0.15818501,115800.0,115790.0,0.02103246]
[1752196830707,0.14954988,115800.0,115790.0,0.03633246]
[1752196830918,0.14954995,115800.0,115790.0,0.03633246]
[1752196831140,0.14954995,115800.0,115790.0,0.03733246]
[1752196831365,0.41908918,115800.0,115790.0,0.03733246]
[1752196831594,0.26953923,115800.0,115790.0,0.03733246]
[1752196831805,0.00566564,115810.0,115800.0,0.0159]
[1752196832015,0.00566564,115810.0,115800.0,0.52501246]
[1752196832423,0.00566564,115810.0,115800.0,0.58663624]
[1752196832628,0.41928479,115830.0,115810.0,0.3559]
[1752196832832,0.26953923,115820.0,115810.0,0.38775246]
[1752196833035,0.49608183,115830.0,115810.0,0.39273246]
[1752196833245,0.0002,115830.0,115820.0,0.04915756]
[1752196833447,0.26973923,115830.0,115820.0,0.09892002]
[1752196833603,0.26973923,115830.0,115820.0,0.23120002]
[1752196834447,0.26973923,115830.0,115820.0,0.23320002]
[1752196835588,0.0002,115830.0,115820.0,0.23320002]
[1752196835788,0.26973923,115830.0,115820.0,0.23420002]
[1752196836216,0.0002,115830.0,115820.0,0.23420002]
[1752196836621,0.26973923,115830.0,115820.0,0.23420002]
[1752196836837,0.0002,115830.0,115820.0,0.23420002]
[1752196837050,0.0002,115830.0,115820.0,0.57420002]
[1752196837308,0.26973923,115830.0,115820.0,0.57420002]
[1752196837673,0.0002,115830.0,115820.0,0.57420002]
[1752196837910,0.26973923,115830.0,115820.0,0.52845246]
[1752196838112,0.26973923,115830.0,115820.0,0.52842597]
[1752196838353,0.0002,115830.0,115820.0,0.52842597]
[1752196838502,0.26973923,115830.0,115820.0,0.52842597]
[1752196839353,0.55852416,115830.0,115820.0,0.36103597]
[1752196839629,0.55852409,115830.0,115820.0,0.53793058]
[1752196840077,0.57579024,115830.0,115820.0,0.53805058]
[1752196840289,0.57579016,115830.0,115820.0,0.53805058]
[1752196840704,0.57579016,115830.0,115820.0,0.40517058]
[1752196840705,0.75709025,115830.0,115820.0,0.40517058]
[1752196840910,1.02845665,115830.0,115820.0,0.01902597]
[1752196841117,0.98243159,115830.0,115820.0,0.06517058]
[1752196842356,0.84955159,115830.0,115820.0,0.06517058]
[1752196842566,0.98255159,115830.0,115820.0,0.06417058]
[1752196842778,0.80125128,115830.0,115820.0,0.06417058]
[1752196842936,0.81815344,115830.0,115820.0,0.06417058]
[1752196843442,0.0002,115830.0,115820.0,0.23139058]
[1752196843758,0.0002,115830.0,115820.0,0.24786975]
[1752196844479,0.0002,115830.0,115820.0,0.24686975]
[1752196844793,0.0002,115830.0,115820.0,0.24786975]
[1752196846401,0.0002,115830.0,115820.0,0.24686975]
[1752196847006,0.0002,115830.0,115820.0,0.58686975]
[1752196847228,0.0002,115830.0,115820.0,0.58886975]
[1752196848550,0.0002,115830.0,115820.0,0.58986975]
[1752196849313,0.01526,115840.0,115830.0,0.34]
[1752196849691,0.023892,115840.0,115830.0,0.4226264]
[1752196849893,0.01526,115840.0,115830.0,0.4226264]
[1752196850436,0.01526,115840.0,115830.0,0.4236264]
[1752196850636,0.36452723,115840.0,115830.0,0.4236264]
[1752196851901,0.37315915,115840.0,115830.0,0.4236264]
[1752196852871,0.38179122,115840.0,115830.0,0.4236264]
[1752196853128,0.54779108,115840.0,115830.0,0.4185364]
[1752196853340,0.6754839,115840.0,115830.0,0.0785364]
[1752196853527,0.6754839,115840.0,115830.0,0.06321674]
[1752196853727,0.6754839,115840.0,115830.0,0.01702597]
[1752196854173,0.6754839,115840.0,115830.0,0.0785364]
[1752196855575,0.6754839,115840.0,115830.0,0.01702597]
[1752196855793,0.6754839,115840.0,115830.0,0.0785364]
[1752196855947,0.6754839,115840.0,115830.0,0.01702597]
[1752196856145,0.6754839,115840.0,115830.0,0.0785364]
[1752196857188,0.67548345,115840.0,115830.0,0.0785364]
[1752196857398,0.50283115,115840.0,115830.0,0.0785364]
[1752196857597,0.50020115,115840.0,115830.0,0.0785364]
[1752196857800,0.5260984,115840.0,115830.0,0.0785364]
[1752196858147,0.69011841,115840.0,115830.0,0.0785364]
[1752196858436,0.69274841,115840.0,115830.0,0.0785364]
[1752196859395,0.68411582,115840.0,115830.0,0.0785364]
[1752196859596,0.69274841,115840.0,115830.0,0.0785364]
[1752196859844,0.68411582,115840.0,115830.0,0.0785364]
[1752196861732,0.67548375,115840.0,115830.0,0.0785364]
[1752196861952,0.66685153,115840.0,115830.0,0.0785364]
[1752196863321,0.65185153,115840.0,115830.0,0.0785364]
[1752196865351,0.65185153,115840.0,115830.0,0.07858706]
[1752196867025,0.00026,115840.0,115830.0,0.11498706]
[1752196867391,0.51016433,115840.0,115830.0,0.001]
[1752196867595,0.71604626,115840.0,115830.0,0.06279073]
[1752196867803,0.50153129,115840.0,115830.0,0.06279073]
[1752196867972,0.49289915,115840.0,115830.0,0.001]
[1752196868273,0.48430723,115840.0,115830.0,0.0374]
[1752196868531,0.35150723,115840.0,115830.0,0.0374]
[1752196868725,0.48430723,115840.0,115830.0,0.0374]
[1752196868931,0.40330476,115840.0,115830.0,0.0374]
[1752196869502,0.27050476,115840.0,115830.0,0.0374]
[1752196869705,0.40326476,115840.0,115830.0,0.0374]
[1752196869907,0.40128476,115840.0,115830.0,0.0374]
[1752196870214,0.26852476,115840.0,115830.0,0.0374]
[1752196870418,0.40124476,115840.0,115830.0,0.0374]
[1752196870782,0.40124476,115840.0,115830.0,0.4548944]
[1752196871188,0.26852476,115840.0,115830.0,0.4548944]
[1752196871387,0.40124476,115840.0,115830.0,0.4548944]
[1752196873468,0.13298,115840.0,115830.0,0.4548944]
[1752196873696,0.26852476,115840.0,115830.0,0.5875744]
[1752196874676,0.00026,115840.0,115830.0,0.5875744]
[1752196875034,0.26852476,115840.0,115830.0,0.5875744]
[1752196876812,0.00026,115840.0,115830.0,0.5875744]
[1752196877175,0.26852476,115840.0,115830.0,0.5875744]
[1752196877381,0.26852476,115840.0,115830.0,0.4548944]
[1752196877979,0.00026,115840.0,115830.0,0.4548944]
[1752196878184,0.26852476,115840.0,115830.0,0.4548944]
[1752196882640,0.27049476,115840.0,115830.0,0.5720144]
[1752196884714,0.27049476,115840.0,115830.0,0.4394944]
[1752196884854,0.27049476,115840.0,115830.0,0.5719744]
[1752196886869,0.26852476,115840.0,115830.0,0.5869744]
[1752196889747,0.00026,115840.0,115830.0,0.5869744]
[1752196889955,0.26852476,115840.0,115830.0,0.5869744]
[1752196890381,0.00026,115840.0,115830.0,0.5869744]
[1752196890788,3.264e-05,115840.0,115830.0,0.50948]
[1752196890977,3.264e-05,115840.0,115830.0,0.58672179]
[1752196892059,0.2772993,115850.0,115840.0,0.3551]
[1752196892259,0.27744855,115850.0,115840.0,0.3701]
[1752196892433,0.27744855,115850.0,115840.0,0.37514]
[1752196892659,0.27744855,115850.0,115840.0,0.45238179]
[1752196896436,0.27744855,115850.0,115840.0,0.46101294]
[1752196898222,0.00918379,115850.0,115840.0,0.46101294]
[1752196900087,0.00918379,115850.0,115840.0,0.54644287]
[1752196900768,0.00918379,115850.0,115840.0,0.81470763]
[1752196900978,0.00918379,115850.0,115840.0,0.81570763]
[1752196901400,0.00918379,115850.0,115840.0,0.81470763]
[1752196901781,0.00918379,115850.0,115840.0,0.81670763]
[1752196901984,0.00918379,115850.0,115840.0,0.81770763]
[1752196902439,0.00918379,115850.0,115840.0,0.47220108]
[1752196903018,0.00114494,115850.0,115840.0,0.47220108]
[1752196903565,0.00114494,115850.0,115840.0,0.58069324]
[1752196906422,0.00114494,115850.0,115840.0,0.71297324]
[1752196906865,0.00114494,115850.0,115840.0,0.60448108]
[1752196907311,0.00034442,115850.0,115840.0,0.60448108]
[1752196908307,0.00034442,115850.0,115840.0,0.71297324]
[1752196911049,0.00034442,115850.0,115840.0,0.58069324]
[1752196911258,0.00034442,115850.0,115840.0,0.71293324]
[1752196911708,0.00034442,115850.0,115840.0,0.981198]
[1752196912140,0.27709445,115870.0,115850.0,0.0323]
[1752196912342,0.26896217,115870.0,115860.0,0.06172781]
[1752196912545,0.00267741,115870.0,115860.0,0.06695781]
[1752196912886,0.00267741,115870.0,115860.0,0.08275781]
[1752196912887,0.00069741,115870.0,115860.0,0.08275781]
[1752196913766,0.00069741,115870.0,115860.0,0.02103]
[1752196914691,0.00069741,115870.0,115860.0,0.02203]
[1752196915178,0.00069741,115870.0,115860.0,0.03853]
[1752196915431,0.00069741,115870.0,115860.0,0.04068777]
[1752196915873,0.00069741,115870.0,115860.0,0.4661177]
[1752196916093,0.00069741,115870.0,115860.0,0.80838445]
[1752196916518,8.444e-05,115870.0,115860.0,0.73322469]
[1752196916963,8.444e-05,115870.0,115860.0,0.73222469]
[1752196917160,8.444e-05,115870.0,115860.0,0.73422469]
[1752196917365,8.444e-05,115870.0,115860.0,0.81126159]
[1752196917579,8.444e-05,115870.0,115860.0,1.00448945]
[1752196918010,8.444e-05,115870.0,115860.0,1.11298161]
[1752196918354,8.444e-05,115870.0,115860.0,0.84471685]
[1752196919030,8.444e-05,115870.0,115860.0,1.11298161]
[1752196919229,0.00472825,115880.0,115870.0,0.02994085]
[1752196919529,0.26846476,115910.0,115880.0,0.34]
[1752196919734,0.27059395,115910.0,115900.0,0.38834628]
[1752196920139,0.27059395,115910.0,115900.0,0.39142628]
[1752196920345,0.27059395,115910.0,115900.0,0.40747013]
[1752196921249,0.00034919,115910.0,115900.0,0.43897013]
[1752196921495,0.00034919,115910.0,115900.0,0.46461195]
[1752196921704,0.27257104,115920.0,115900.0,0.46461195]
[1752196921836,0.27257104,115920.0,115910.0,0.13224]
[1752196922051,0.27455104,115920.0,115910.0,0.14828385]
[1752196922853,0.28317708,115920.0,115910.0,0.14828385]
[1752196923062,0.29180319,115920.0,115910.0,0.14828385]
[1752196923273,0.34065579,115920.0,115910.0,0.1943736]
[1752196923460,0.33202938,115920.0,115910.0,0.1943736]
[1752196923665,0.34065572,115920.0,115910.0,0.14824385]
[1752196923804,0.33202938,115920.0,115910.0,0.2098389]
[1752196924005,0.77545752,115920.0,115910.0,0.2098389]
[1752196924280,0.85226156,115920.0,115910.0,0.06214407]
[1752196924784,0.97583507,115920.0,115910.0,0.06214407]
[1752196926036,1.07580585,115920.0,115910.0,0.06214407]
[1752196926176,0.99037592,115920.0,115910.0,0.06214407]
[1752196927598,0.18117489,115910.0,115900.0,0.04610022]
[1752196927799,0.57076958,115910.0,115900.0,0.06210216]
[1752196928591,0.83903434,115910.0,115900.0,0.06210216]
[1752196928842,0.57076958,115910.0,115900.0,0.01600194]
[1752196929043,0.83903434,115910.0,115900.0,0.01600194]
[1752196929445,0.83803434,115910.0,115900.0,0.01600194]
[1752196929632,0.56976958,115910.0,115900.0,0.01600194]
[1752196930018,0.83803434,115910.0,115900.0,0.01600194]
[1752196930989,0.93800512,115910.0,115900.0,0.01600194]
[1752196931602,0.85257519,115910.0,115900.0,0.01600194]
[1752196932835,1.37477519,115910.0,115900.0,0.01600194]
[1752196933461,0.21349052,115900.0,115890.0,0.00014919]
[1752196933667,0.86649007,115900.0,115890.0,0.00014919]
[1752196933867,0.99869007,115900.0,115890.0,0.00014919]
[1752196934077,1.08412,115900.0,115890.0,0.00014919]
[1752196935837,1.08512,115900.0,115890.0,0.00014919]
[1752196939512,0.86749007,115900.0,115890.0,0.00014919]
[1752196939720,0.99969007,115900.0,115890.0,0.00014919]
[1752196942798,1.41423092,115900.0,115890.0,0.00014919]
[1752196945059,0.55314116,115900.0,115890.0,0.03645919]
[1752196945201,0.67675311,115900.0,115890.0,0.03645919]
[1752196945405,0.51181772,115900.0,115890.0,0.05248731]
[1752196945605,0.69300832,115900.0,115890.0,0.05248731]
[1752196945805,0.69400832,115900.0,115890.0,0.05248731]
[1752196946044,0.68733087,115900.0,115890.0,0.03645919]
[1752196946259,0.68633087,115900.0,115890.0,0.05248694]
[1752196946462,0.68733087,115900.0,115890.0,0.05248694]
[1752196946770,0.68733087,115900.0,115890.0,0.09858716]
[1752196946909,0.67870282,115900.0,115890.0,0.09858716]
[1752196947114,0.51281764,115900.0,115890.0,0.09858716]
[1752196947519,0.52144554,115900.0,115890.0,0.09858716]
[1752196947738,0.69591876,115900.0,115890.0,0.09858716]
[1752196947984,0.67866326,115900.0,115890.0,0.08328716]
[1752196948612,0.67003536,115900.0,115890.0,0.08328716]
[1752196949045,0.67003536,115900.0,115890.0,0.06440716]
[1752196949266,0.67003536,115900.0,115890.0,0.01617694]
[1752196949419,1.02373005,115900.0,115890.0,0.01617694]
[1752196949599,1.02636005,115900.0,115890.0,0.01617694]
[1752196950261,0.93830012,115900.0,115890.0,0.01617694]
[1752196950440,0.67003536,115900.0,115890.0,0.01617694]
[1752196950632,0.67003536,115900.0,115890.0,0.01935694]
[1752196950901,0.67003536,115900.0,115890.0,0.03515694]
[1752196951930,0.67003536,115900.0,115890.0,0.01617694]
[1752196952748,0.67003536,115900.0,115890.0,0.01618027]
[1752196952954,0.93830012,115900.0,115890.0,0.06228049]
[1752196953795,0.67003536,115900.0,115890.0,0.06228049]
[1752196955513,0.67003536,115900.0,115890.0,0.06229713]
[1752196955742,1.02373005,115900.0,115890.0,0.06229713]
[1752196956161,0.83983012,115900.0,115890.0,0.06229713]
[1752196956385,0.95683012,115900.0,115890.0,0.01619691]
[1752196956600,0.97203012,115900.0,115890.0,0.01619691]
[1752196956832,0.97203012,115900.0,115890.0,0.06229713]
[1752196957514,0.94093012,115900.0,115890.0,0.06229713]
[1752196957714,0.93830012,115900.0,115890.0,0.06229713]
[1752196958469,0.93830012,115900.0,115890.0,0.06230943]
[1752196960712,0.93830012,115900.0,115890.0,0.07840943]
[1752196960924,0.93830012,115900.0,115890.0,0.06230943]
[1752196961122,0.93830012,115900.0,115890.0,0.06230891]
[1752196963795,0.93830012,115900.0,115890.0,0.04624941]
[1752196964002,0.93830012,115900.0,115890.0,0.06231498]
[1752196964227,1.0717009,115900.0,115890.0,0.06231498]
[1752196964459,1.0717009,115900.0,115890.0,0.01621476]
[1752196965730,1.09814178,115900.0,115890.0,0.01621476]
[1752196965943,1.12624785,115900.0,115890.0,0.01621476]
[1752196968015,1.14996845,115900.0,115890.0,0.01621476]
[1752196969508,1.12624785,115900.0,115890.0,0.01621476]
[1752196970126,1.09814178,115900.0,115890.0,0.01621476]
[1752196973052,1.01271185,115900.0,115890.0,0.01621476]
[1752196974468,0.71101709,115900.0,115890.0,0.03261476]
[1752196974677,0.71101709,115900.0,115890.0,0.07871498]
[1752196974886,0.97928185,115900.0,115890.0,0.07871498]
[1752196975759,0.95284097,115900.0,115890.0,0.06231498]
[1752196975942,1.0382709,115900.0,115890.0,0.06231498]
[1752196977150,1.0409009,115900.0,115890.0,0.06231498]
[1752196977402,1.0726009,115900.0,115890.0,0.06231498]
[1752196979619,1.0563009,115900.0,115890.0,0.06231498]
[1752196980022,1.08197033,115900.0,115890.0,0.06231498]
[1752196980460,1.06657033,115900.0,115890.0,0.06231498]
[1752196980571,1.06657033,115900.0,115890.0,0.06232629]
[1752196981406,1.06394033,115900.0,115890.0,0.06232629]
[1752196982528,1.06394033,115900.0,115890.0,0.06232802]
[1752196983096,1.46657033,115900.0,115890.0,0.06232802]
[1752196983254,1.06657033,115900.0,115890.0,0.06232802]
[1752196984421,1.06394033,115900.0,115890.0,0.06232802]
[1752196984988,0.08642993,115900.0,115890.0,0.09812802]
[1752196985192,0.48689469,115900.0,115890.0,0.11362285]
[1752196985595,0.001,115900.0,115890.0,0.11362285]
[1752196985813,0.001,115900.0,115890.0,0.11578006]
[1752196986014,0.001,115900.0,115890.0,0.39418501]
[1752196986267,0.001,115900.0,115890.0,0.46905114]
[1752196987614,0.001,115900.0,115890.0,0.47005114]
[1752196988205,0.001,115900.0,115890.0,0.55545993]
[1752196988415,0.00011846,115900.0,115890.0,0.47843659]
[1752196988829,0.00011846,115900.0,115890.0,0.47743659]
[1752196989388,0.00011846,115900.0,115890.0,0.55636084]
[1752196989626,0.00011846,115900.0,115890.0,0.68856084]
[1752196990043,0.26826476,115900.0,115890.0,0.68856084]
[1752196990667,0.26826476,115900.0,115890.0,0.71476045]
[1752196991192,0.26826476,115900.0,115890.0,0.71776045]
[1752196992003,0.26826476,115900.0,115890.0,0.69156084]
[1752196992405,0.25477843,115900.0,115890.0,0.69156084]
[1752196992821,0.25477843,115900.0,115890.0,0.67550337]
[1752196993030,0.26826476,115910.0,115900.0,0.3718]
[1752196993226,0.26826476,115910.0,115900.0,0.43838267]
[1752196993990,0.26826476,115910.0,115900.0,0.09838267]
[1752196994180,0.26826476,115910.0,115900.0,0.23458267]
[1752196994690,0.44943913,115910.0,115900.0,0.10238267]
[1752196994893,0.46867292,115910.0,115900.0,0.10238267]
[1752196995095,0.13216,115910.0,115900.0,0.10238267]
[1752196995378,0.40042476,115910.0,115900.0,0.10238267]
[1752196995582,0.40905147,115910.0,115900.0,0.10238267]
[1752196995758,0.40042476,115910.0,115900.0,0.10238267]
[1752196995958,0.40042476,115910.0,115900.0,0.45088432]
[1752196996167,0.40905147,115910.0,115900.0,0.45088432]
[1752196996368,0.40042476,115910.0,115900.0,0.45088432]
[1752196997904,0.40905154,115910.0,115900.0,0.45088432]
[1752196998108,0.39870209,115910.0,115900.0,0.46690526]
[1752196998310,0.39007531,115910.0,115900.0,0.46690526]
[1752196998745,0.39870209,115910.0,115900.0,0.46290526]
[1752196999151,0.39007531,115910.0,115900.0,0.46290526]
[1752196999312,0.39007531,115910.0,115900.0,0.46490526]
[1752196999313,0.4073291,115910.0,115900.0,0.46490526]
[1752196999539,0.57124975,115910.0,115900.0,0.46490526]
[1752196999755,0.57124975,115910.0,115900.0,0.40342259]
[1752196999955,0.57987668,115910.0,115900.0,0.40342259]
[1752197000173,0.57987668,115910.0,115900.0,0.46490526]
[1752197000400,0.56262297,115910.0,115900.0,0.46490526]
[1752197002755,0.40042476,115910.0,115900.0,0.46490526]
[1752197003782,0.40905147,115910.0,115900.0,0.46490526]
[1752197003975,0.13216,115910.0,115900.0,0.46490526]
[1752197004182,0.40042476,115910.0,115900.0,0.46490526]
[1752197004382,0.40905147,115910.0,115900.0,0.45640361]
[1752197004619,0.40042476,115910.0,115900.0,0.46522594]
[1752197005835,0.40042476,115910.0,115900.0,0.46522441]
[1752197006531,0.40905147,115910.0,115900.0,0.45640208]
[1752197007995,0.39870204,115910.0,115900.0,0.45640208]
[1752197008386,0.40732882,115910.0,115900.0,0.45640208]
[1752197008596,0.39007533,115910.0,115900.0,0.45640208]
[1752197009493,0.39870219,115910.0,115900.0,0.45640208]
[1752197009631,0.39007533,115910.0,115900.0,0.45640208]
[1752197010243,0.56262299,115910.0,115900.0,0.45640208]
[1752197010450,0.57987663,115910.0,115900.0,0.45640208]
[1752197010656,0.4073289,115910.0,115900.0,0.45640208]
[1752197010860,0.39870204,115910.0,115900.0,0.45640208]
[1752197011505,0.58850379,115910.0,115900.0,0.45640208]
[1752197011735,0.59048379,115910.0,115900.0,0.42153208]
[1752197011953,0.59048371,115910.0,115900.0,0.44101208]
[1752197012458,0.4073289,115910.0,115900.0,0.45721208]
[1752197012689,0.40732882,115910.0,115900.0,0.45721208]
[1752197012914,0.39870204,115910.0,115900.0,0.45721208]
[1752197013153,0.39870204,115910.0,115900.0,0.39572941]
[1752197013412,0.39007533,115910.0,115900.0,0.39572941]
[1752197014205,0.39870204,115910.0,115900.0,0.45663425]
[1752197014390,0.39007533,115910.0,115900.0,0.47268461]
[1752197015595,0.40042476,115910.0,115900.0,0.47268461]
[1752197016194,0.25791543,115910.0,115900.0,0.47268461]
[1752197016322,0.40905162,115910.0,115900.0,0.47268461]
[1752197016531,0.60083352,115910.0,115900.0,0.45648461]
[1752197016765,0.60083345,115910.0,115900.0,0.45648461]
[1752197017116,0.41103162,115910.0,115900.0,0.45648461]
[1752197017321,0.41103162,115910.0,115900.0,0.47268461]
[1752197017546,0.59220621,115910.0,115900.0,0.47268461]
[1752197017989,0.41103162,115910.0,115900.0,0.47268461]
[1752197018198,0.39870227,115910.0,115900.0,0.47268461]
[1752197018405,0.40732913,115910.0,115900.0,0.47268461]
[1752197018833,0.41595614,115910.0,115900.0,0.47268461]
[1752197019050,0.60773811,115910.0,115900.0,0.47268461]
[1752197019266,0.58185679,115910.0,115900.0,0.45648461]
[1752197019496,0.58185679,115910.0,115900.0,0.47318461]
[1752197019700,0.59048372,115910.0,115900.0,0.47318461]
[1752197019964,0.59911088,115910.0,115900.0,0.45698461]
[1752197020159,0.59911088,115910.0,115900.0,0.44068461]
[1752197020332,0.69316819,115910.0,115900.0,0.09547461]
[1752197020581,1.04677994,115910.0,115900.0,0.09547461]
[1752197020801,0.72478525,115910.0,115900.0,0.08026272]
[1752197021025,1.12478525,115910.0,115900.0,0.08026272]
[1752197021564,1.12478525,115910.0,115900.0,0.07826272]
[1752197022200,1.12478525,115910.0,115900.0,0.01655036]
[1752197022854,1.22420235,115910.0,115900.0,0.01655036]
[1752197023041,1.20112958,115910.0,115900.0,0.01973036]
[1752197023243,1.22701038,115910.0,115900.0,0.08144272]
[1752197023836,1.23563776,115910.0,115900.0,0.08348272]
[1752197024071,0.26826476,115910.0,115900.0,0.11598272]
[1752197024249,0.40038476,115910.0,115900.0,0.11598272]
[1752197024487,0.40038476,115910.0,115900.0,0.05427036]
[1752197024694,0.40038476,115910.0,115900.0,0.13119461]
[1752197025532,0.40038476,115910.0,115900.0,0.13120443]
[1752197026114,0.40038476,115910.0,115900.0,0.13220443]
[1752197026335,0.40038476,115910.0,115900.0,0.13120443]
[1752197026622,0.40038476,115910.0,115900.0,0.11514425]
[1752197026823,0.40038476,115910.0,115900.0,0.11614425]
[1752197027228,0.40042476,115910.0,115900.0,0.11614425]
[1752197030869,0.29852939,115920.0,115900.0,0.11614425]
[1752197030870,0.00438629,115920.0,115910.0,0.0165]
[1752197031169,0.50745298,115920.0,115910.0,0.09568165]
[1752197031404,0.50745298,115920.0,115910.0,0.09881165]
[1752197032267,0.77571774,115920.0,115910.0,0.09881165]
[1752197032768,0.77571774,115920.0,115910.0,0.114866]
[1752197032769,0.76338095,115920.0,115910.0,0.114866]
[1752197033085,0.77200691,115920.0,115910.0,0.114866]
[1752197033315,0.40106022,115920.0,115910.0,0.115866]
[1752197035359,0.67795102,115920.0,115910.0,0.115866]
[1752197035775,0.67991102,115920.0,115910.0,0.115866]
[1752197035965,0.68853721,115920.0,115910.0,0.100266]
[1752197036161,0.67991102,115920.0,115910.0,0.100266]
[1752197036367,0.68853721,115920.0,115910.0,0.100266]
[1752197036565,0.67991102,115920.0,115910.0,0.100266]
[1752197036804,0.68853713,115920.0,115910.0,0.100266]
[1752197037366,0.69716339,115920.0,115910.0,0.100266]
[1752197037870,0.68853713,115920.0,115910.0,0.100266]
[1752197038070,0.69716347,115920.0,115910.0,0.100266]
[1752197038270,0.68853713,115920.0,115910.0,0.100266]
[1752197038715,0.69716339,115920.0,115910.0,0.100266]
[1752197038949,0.69716339,115920.0,115910.0,0.097136]
[1752197039594,0.86969617,115920.0,115910.0,0.097136]
[1752197039792,0.87832266,115920.0,115910.0,0.097136]
[1752197040076,0.87832258,115920.0,115910.0,0.095166]
[1752197040230,0.86969617,115920.0,115910.0,0.078666]
[1752197040443,0.87832258,115920.0,115910.0,0.078666]
[1752197041011,0.86106991,115920.0,115910.0,0.081796]
[1752197041341,0.68853713,115920.0,115910.0,0.099866]
[1752197042387,0.69716339,115920.0,115910.0,0.099866]
[1752197042621,0.67876707,115920.0,115910.0,0.099866]
[1752197042786,0.68739333,115920.0,115910.0,0.099866]
[1752197042991,0.86855245,115920.0,115910.0,0.099866]
[1752197043243,0.87717894,115920.0,115910.0,0.099866]
[1752197043444,0.86855245,115920.0,115910.0,0.099866]
[1752197043657,0.85992611,115920.0,115910.0,0.099866]
[1752197043880,0.85992604,115920.0,115910.0,0.099866]
[1752197044243,0.67876707,115920.0,115910.0,0.08381165]
[1752197044451,0.67876715,115920.0,115910.0,0.09986603]
[1752197044673,0.67876707,115920.0,115910.0,0.09986552]
[1752197045884,0.53906848,115920.0,115910.0,0.09986552]
[1752197046092,0.67785452,115920.0,115910.0,0.11646552]
[1752197046313,0.68648071,115920.0,115910.0,0.11646552]
[1752197046657,0.67785452,115920.0,115910.0,0.11646552]
[1752197046868,0.68648071,115920.0,115910.0,0.11646552]
[1752197047176,0.33307031,115920.0,115910.0,0.09986552]
[1752197047398,0.86097349,115920.0,115910.0,0.09986552]
[1752197047616,0.86959975,115920.0,115910.0,0.09986552]
[1752197048063,0.87822609,115920.0,115910.0,0.07866552]
[1752197048728,0.86959975,115920.0,115910.0,0.08179552]
[1752197048967,0.86959975,115920.0,115910.0,0.09769552]
[1752197049606,0.86959975,115920.0,115910.0,0.09966552]
[1752197049833,0.73747975,115920.0,115910.0,0.09966552]
[1752197050042,0.87822624,115920.0,115910.0,0.09966552]
[1752197050422,0.88685287,115920.0,115910.0,0.08376552]
[1752197050639,0.88685287,115920.0,115910.0,0.08179552]
[1752197051053,0.87822624,115920.0,115910.0,0.08179552]
[1752197051380,0.88685287,115920.0,115910.0,0.07866552]
[1752197051581,0.87822683,115920.0,115910.0,0.07866552]
[1752197051813,0.96365676,115920.0,115910.0,0.07866552]
[1752197052038,1.05026424,115920.0,115910.0,0.07866552]
[1752197052258,1.06556424,115920.0,115910.0,0.07866552]
[1752197052639,1.38013431,115920.0,115910.0,0.07866552]
[1752197052872,1.38013431,115920.0,115910.0,0.078671]
[1752197053644,1.34640431,115920.0,115910.0,0.078671]
[1752197054484,0.66050167,115920.0,115910.0,0.078671]
[1752197054684,1.33777768,115920.0,115910.0,0.114971]
[1752197055065,0.94640394,115920.0,115910.0,0.114971]
[1752197055474,0.9550305,115920.0,115910.0,0.114971]
[1752197055676,0.96365654,115920.0,115910.0,0.114971]
[1752197055870,0.96365654,115920.0,115910.0,0.05335935]
[1752197055871,0.95502998,115920.0,115910.0,0.05335935]
[1752197056300,0.96365639,115920.0,115910.0,0.05335935]
[1752197056552,0.82957639,115920.0,115910.0,0.05335935]
[1752197056707,0.97032287,115920.0,115910.0,0.05335935]
[1752197056912,0.95503057,115920.0,115910.0,0.04825935]
[1752197057116,0.95503057,115920.0,115910.0,0.01705935]
[1752197057493,0.95503057,115920.0,115910.0,0.07876029]
[1752197058398,0.95503057,115920.0,115910.0,0.09466029]
[1752197058531,0.95503057,115920.0,115910.0,0.09976029]
[1752197059038,0.95503057,115920.0,115910.0,0.11496029]
[1752197059570,0.78249779,115920.0,115910.0,0.11496029]
[1752197060345,0.95503057,115920.0,115910.0,0.11496029]
[1752197060833,0.82291057,115920.0,115910.0,0.09976029]
[1752197061033,0.9550305,115920.0,115910.0,0.09773029]
[1752197061247,0.9550305,115920.0,115910.0,0.09975029]
[1752197062665,0.9550305,115920.0,115910.0,0.09975214]
[1752197062891,0.9550305,115920.0,115910.0,0.10025214]
[1752197063249,0.96365713,115920.0,115910.0,0.10025214]
[1752197063594,0.9550305,115920.0,115910.0,0.11665214]
[1752197064000,0.41850098,115920.0,115910.0,0.11665214]
[1752197064373,0.9550305,115920.0,115910.0,0.10025214]
[1752197064958,0.96365713,115920.0,115910.0,0.10025214]
[1752197065599,0.95503079,115920.0,115910.0,0.07926214]